fUST/lending_fUST_20240915
["ID","MTS","AMOUNT","RATE_DAILY","PERIOD"]
[338169112,1726337443515,-151.0,0.00021907,2]
[338169113,1726337443525,-151.0,0.00021907,2]
[338169114,1726337443535,-318.841262,0.00021907,2]
[338169115,1726337443547,-318.841262,0.00021907,2]
[338169116,1726337443558,-318.841262,0.00021907,2]
[338169117,1726337443569,-318.841262,0.00021907,2]
[338169118,1726337443579,-151.0,0.00021907,2]
[338169119,1726337443588,-151.0,0.00021907,2]
[338169120,1726337443598,-151.0,0.00021907,2]
[338169121,1726337443610,-151.0,0.00021907,2]
[338169122,1726337443620,-151.0,0.00021907,2]
[338169123,1726337443630,-151.0,0.00021907,2]
[338169124,1726337443639,-151.0,0.00021907,2]
[338169125,1726337443649,-151.0,0.00021907,2]
[338169126,1726337443662,-151.0,0.00021907,2]
[338169127,1726337443672,-151.0,0.00021907,2]
[338169128,1726337443681,-151.0,0.00021907,2]
[338169129,1726337443690,-151.0,0.00021907,2]
[338169130,1726337443700,-151.0,0.00021907,2]
[338169131,1726337443709,-151.0,0.00021907,2]
[338169132,1726337443718,-151.0,0.00021907,2]
[338169133,1726337443727,-219.82081,0.00021907,2]
[338169134,1726337443737,-219.82081,0.00021907,2]
[338169135,1726337443746,-219.82081,0.00021907,2]
[338169136,1726337443757,-219.82081,0.00021907,2]
[338169137,1726337443766,-151.0,0.00021907,2]
[338169138,1726337443775,-151.0,0.00021907,2]
[338169139,1726337443785,-151.0,0.00021907,2]
[338169140,1726337443794,-151.0,0.00021907,2]
[338169141,1726337443803,-8.66914305,0.00021907,2]
[338169158,1726337446099,-142.33085695,0.00021907,2]
[338169159,1726337446109,-151.0,0.00021907,2]
[338169160,1726337446119,-151.0,0.00021907,2]
[338169161,1726337446128,-107.83896324,0.00021907,2]
[338169162,1726337446174,-82.06412176,0.00021907,2]
[338169163,1726337446183,-151.0,0.00021907,2]
[338169164,1726337446192,-151.0,0.00021907,2]
[338169165,1726337446203,-189.903085,0.00021907,2]
[338169166,1726337446214,-151.0,0.00021907,2]
[338169167,1726337446224,-151.0,0.00021907,2]
[338169168,1726337446233,-189.903085,0.00021907,2]
[338169169,1726337446242,-189.903085,0.00021907,2]
[338169170,1726337446252,-151.0,0.00021907,2]
[338169171,1726337446261,-151.0,0.00021907,2]
[338169172,1726337446271,-151.0,0.00021907,2]
[338169173,1726337446279,-151.0,0.00021907,2]
[338169174,1726337446289,-97.97653953,0.00021916,2]
[338169175,1726337446301,-595.5,0.00021916,2]
[338169176,1726337463503,610.27482004,9.733e-05,2]
[338169177,1726337463527,389.72517996,9.733e-05,2]
[338169181,1726337973915,257.190806,0.00013699,2]
[338169200,1726338359110,-257.190806,0.00020187,2]
[338169201,1726338359130,-161.47471,0.00020436,2]
[338169202,1726338359152,-8.58411043,0.00020629,2]
[338169204,1726338465928,250.545986,0.00013699,2]
[338169215,1726338521476,8942.76653425,0.00014,2]
[338169217,1726338548116,-500.0,0.00018773,2]
[338169218,1726338548137,-500.0,0.00018773,2]
[338169219,1726338548161,-199.50758704,0.00018773,2]
[338169220,1726338548181,-200.0,0.00018773,2]
[338169221,1726338548202,-500.0,0.00018789,2]
[338169222,1726338548224,-218.21925914,0.00018789,2]
[338169223,1726338548245,-300.0,0.00018789,2]
[338169224,1726338548267,-286635.524439,0.0001879,2]
[338169225,1726338548289,-23591.190837,0.0001879,2]
[338169226,1726338548310,-157.3,0.0001879,3]
[338169227,1726338548332,-471.92,0.0001879,3]
[338169228,1726338548353,-339.40210689,0.00018799,2]
[338169229,1726338548607,-500.0,0.00018799,2]
[338169230,1726338548628,-509.87290655,0.00018799,2]
[338169231,1726338548651,-500.0,0.00018799,2]
[338169232,1726338548676,-500.0,0.00018799,2]
[338169233,1726338548698,-461.5364602,0.00018799,2]
[338169234,1726338548720,-500.0,0.00018799,2]
[338169235,1726338548743,-500.0,0.00018799,2]
[338169236,1726338548765,-500.0,0.00018799,2]
[338169237,1726338548786,-500.0,0.00018799,2]
[338169238,1726338548808,-462.96339007,0.00018799,2]
[338169239,1726338548829,-500.0,0.00018799,2]
[338169240,1726338548850,-500.0,0.00018799,2]
[338169241,1726338548872,-500.0,0.00018799,2]
[338169242,1726338548897,-500.0,0.00018799,2]
[338169243,1726338548920,-500.0,0.00018799,2]
[338169244,1726338548942,-500.0,0.00018799,2]
[338169245,1726338548965,-500.0,0.00018799,2]
[338169246,1726338548986,-200.0,0.00018799,2]
[338169247,1726338549006,-160.0,0.00018799,2]
[338169248,1726338549027,-160.46574835,0.00018799,2]
[338169249,1726338549048,-4461.70113959,0.000188,5]
[338169250,1726338549070,-27074.04112617,0.000188,2]
[338169251,1726338566095,-284.86025039,0.00018773,2]
[338169252,1726338566116,-107286.26736226,0.000188,2]
[338169269,1726338568100,-116763.1178966,0.000188,2]
[338169270,1726338570106,-19976.8675358,0.000188,2]
[338169410,1726338643278,-309.5210958,0.00018141,2]
[338169411,1726338643291,-2983.71819735,0.00018481,2]
[338169412,1726338643305,-326.97698385,0.00018481,2]
[338169413,1726338643317,-524.32,0.0001879,3]
[338169414,1726338643328,-524.32,0.0001879,3]
[338169415,1726338643339,-30396.01160969,0.000188,5]
[338169416,1726338643350,-27720.50640129,0.000188,2]
[338169417,1726338643364,-311.69803547,0.000188,2]
[338169418,1726338643378,-7416.12424416,0.000188,2]
[338169419,1726338643427,-1075.48864695,0.000188,2]
[338169420,1726338643441,-239163.14733226,0.000188,2]
[338169438,1726338646237,-3821.41430996,0.000188,2]
[338169439,1726338646253,-140877.746038,0.000188,2]
[338169440,1726338646268,-548.53406688,0.000188,2]
[338169441,1726338646282,-613.5885,0.000188,2]
[338169467,1726339089778,311.771062,0.00013699,2]
[338169533,1726339541145,-345.9975101,0.00017571,2]
[338169534,1726339541168,-250.0,0.00017577,2]
[338169535,1726339541190,-165.065715,0.00017912,2]
[338169536,1726339541212,-165.065715,0.00018067,2]
[338169537,1726339541233,-165.065715,0.00018223,2]
[338169538,1726339541254,-165.065715,0.00018378,2]
[338169539,1726339541277,-165.065715,0.00018534,2]
[338169540,1726339541297,-1867.34306694,0.00018679,2]
[338169541,1726339541318,-161.36702976,0.00018689,2]
[338169542,1726339541339,-165.065715,0.0001869,2]
[338169543,1726339541361,-652.38673461,0.0001869,2]
[338169544,1726339541381,-556.82,0.0001877,3]
[338169545,1726339541401,-300.0,0.00018771,2]
[338169546,1726339541423,-300.0,0.00018772,2]
[338169547,1726339541444,-157.58457493,0.00018773,2]
[338169548,1726339541464,-267.80962956,0.00018773,2]
[338169549,1726339541483,-500.0,0.00018773,2]
[338169550,1726339541502,-500.0,0.00018773,2]
[338169551,1726339541522,-199.50758704,0.00018773,2]
[338169552,1726339541543,-500.0,0.00018773,2]
[338169553,1726339541563,-500.40947334,0.00018773,2]
[338169554,1726339541583,-500.0,0.00018773,2]
[338169555,1726339541603,-200.0,0.00018773,2]
[338169556,1726339541623,-500.0,0.00018773,2]
[338169557,1726339541642,-500.0,0.00018773,2]
[338169558,1726339541662,-500.0,0.00018773,2]
[338169559,1726339541682,-500.0,0.00018773,2]
[338169560,1726339541701,-500.0,0.00018773,2]
[338169561,1726339541721,-500.0,0.00018779,2]
[338169562,1726339541743,-500.0,0.00018779,2]
[338169563,1726339541763,-500.0,0.00018779,2]
[338169564,1726339541784,-500.0,0.00018779,2]
[338169565,1726339541804,-246.02970038,0.00018779,2]
[338169566,1726339541824,-500.0,0.00018779,2]
[338169567,1726339541845,-500.0,0.00018779,2]
[338169568,1726339541871,-500.0,0.00018779,2]
[338169569,1726339541896,-500.0,0.00018779,2]
[338169570,1726339541921,-500.0,0.00018779,2]
[338169571,1726339541944,-500.0,0.00018779,2]
[338169572,1726339541966,-500.0,0.00018779,2]
[338169573,1726339541988,-251.91203171,0.00018779,2]
[338169574,1726339542009,-500.0,0.00018779,2]
[338169575,1726339542030,-500.0,0.00018779,2]
[338169576,1726339542054,-500.0,0.00018779,2]
[338169577,1726339542076,-500.0,0.00018779,2]
[338169578,1726339542097,-500.0,0.00018779,2]
[338169579,1726339542121,-500.0,0.00018779,2]
[338169580,1726339542144,-500.0,0.00018779,2]
[338169581,1726339542170,-500.0,0.00018779,2]
[338169582,1726339542191,-305.67066046,0.00018779,2]
[338169583,1726339542212,-500.0,0.00018779,2]
[338169584,1726339542234,-500.0,0.00018779,2]
[338169585,1726339542255,-500.0,0.00018779,2]
[338169586,1726339542279,-500.0,0.00018779,2]
[338169587,1726339542300,-500.0,0.00018779,2]
[338169588,1726339542321,-500.0,0.00018779,2]
[338169589,1726339542344,-500.0,0.00018779,2]
[338169590,1726339542365,-500.0,0.00018779,2]
[338169591,1726339542387,-500.0,0.00018779,2]
[338169592,1726339542409,-500.0,0.00018779,2]
[338169593,1726339542431,-500.0,0.00018779,2]
[338169594,1726339542452,-500.0,0.00018779,2]
[338169595,1726339542473,-500.0,0.00018779,2]
[338169596,1726339542493,-500.0,0.00018779,2]
[338169597,1726339542515,-500.0,0.00018779,2]
[338169598,1726339542536,-500.0,0.00018779,2]
[338169599,1726339542557,-500.0,0.00018779,2]
[338169600,1726339542579,-500.0,0.00018779,2]
[338169601,1726339542600,-500.0,0.00018779,2]
[338169602,1726339542620,-500.0,0.00018779,2]
[338169603,1726339542641,-500.0,0.00018779,2]
[338169604,1726339542663,-500.0,0.00018779,2]
[338169605,1726339542683,-500.0,0.00018779,2]
[338169606,1726339542704,-500.0,0.00018779,2]
[338169607,1726339542726,-500.0,0.00018779,2]
[338169608,1726339542748,-500.0,0.00018779,2]
[338169609,1726339542770,-500.0,0.00018779,2]
[338169610,1726339542792,-500.0,0.00018779,2]
[338169611,1726339542812,-500.0,0.00018779,2]
[338169612,1726339542833,-500.0,0.00018779,2]
[338169613,1726339542854,-500.0,0.00018779,2]
[338169614,1726339542875,-500.0,0.00018779,2]
[338169615,1726339542897,-500.0,0.00018779,2]
[338169616,1726339542919,-500.0,0.00018779,2]
[338169617,1726339542941,-500.0,0.00018779,2]
[338169618,1726339542962,-180.56706605,0.00018779,2]
[338169619,1726339542985,-500.0,0.00018779,2]
[338169620,1726339543008,-500.0,0.00018779,2]
[338169621,1726339543030,-500.0,0.00018779,2]
[338169622,1726339543052,-500.0,0.00018779,2]
[338169623,1726339543074,-500.0,0.00018779,2]
[338169624,1726339543096,-57682.49023945,0.0001878,2]
[338169625,1726339626151,-165.065715,0.00017918,2]
[338169626,1726339626176,-278.41,0.0001877,3]
[338169627,1726339626200,-835.24,0.0001877,3]
[338169628,1726339626225,-500.0,0.00018773,2]
[338169629,1726339626247,-300.0,0.00018779,2]
[338169630,1726339626271,-16267.387124,0.0001878,2]
[338169631,1726339639107,-500.0,0.00018773,2]
[338169632,1726339639128,-998.39697225,0.00018779,2]
[338169633,1726339639151,-6681.24707915,0.0001878,2]
[338169634,1726339639173,-76937.1843751,0.0001878,2]
[338169635,1726339639194,-394.29697818,0.00018789,2]
[338169636,1726339639216,-500.0,0.00018789,2]
[338169637,1726339639242,-198.1888785,0.00018789,2]
[338169638,1726339639264,-500.0,0.00018789,2]
[338169639,1726339639287,-500.0,0.00018789,2]
[338169640,1726339639312,-500.0,0.00018789,2]
[338169641,1726339639332,-551.97075962,0.00018789,2]
[338169642,1726339639355,-500.0,0.00018789,2]
[338169643,1726339639380,-311.19048147,0.00018789,2]
[338169644,1726339639402,-500.0,0.00018789,2]
[338169645,1726339639424,-500.0,0.00018789,2]
[338169646,1726339639444,-500.0,0.00018789,2]
[338169647,1726339639467,-500.0,0.00018789,2]
[338169648,1726339639497,-500.0,0.00018789,2]
[338169649,1726339639519,-500.0,0.00018789,2]
[338169650,1726339639541,-500.0,0.00018789,2]
[338169651,1726339639563,-500.0,0.00018789,2]
[338169652,1726339639585,-500.0,0.00018789,2]
[338169653,1726339639607,-500.0,0.00018789,2]
[338169654,1726339639630,-531.77324301,0.00018789,2]
[338169655,1726339639653,-500.0,0.00018789,2]
[338169656,1726339639676,-500.0,0.00018789,2]
[338169657,1726339639698,-500.0,0.00018789,2]
[338169658,1726339639721,-500.0,0.00018789,2]
[338169659,1726339639743,-500.0,0.00018789,2]
[338169660,1726339639767,-450.0,0.00018789,2]
[338169661,1726339639790,-500.0,0.00018789,2]
[338169662,1726339639812,-500.0,0.00018789,2]
[338169663,1726339639835,-500.0,0.00018789,2]
[338169664,1726339639857,-8177.18603572,0.0001879,2]
[338169665,1726339650099,-72453.93840688,0.0001879,2]
[338169666,1726339650123,-76937.1843751,0.0001879,2]
[338169667,1726339650146,-114678.04613288,0.0001879,2]
[338169682,1726339746555,313.42878,0.00013699,2]
[338169721,1726339832273,-335.5610944,0.00017755,2]
[338169723,1726339832283,-1633.92518352,0.00018689,2]
[338169725,1726339832292,-2396.96910154,0.000187,2]
[338169727,1726339832304,-1175.58959362,0.000187,2]
[338169730,1726339832316,-3711.83530478,0.000187,2]
[338169732,1726339832326,-300.0,0.00018769,2]
[338169734,1726339832336,-278.41,0.0001877,3]
[338169736,1726339832345,-835.23,0.0001877,3]
[338169738,1726339832355,-500.0,0.00018773,2]
[338169741,1726339832366,-500.0,0.00018773,2]
[338169744,1726339832382,-251.00193753,0.00018773,2]
[338169746,1726339832392,-500.0,0.00018773,2]
[338169750,1726339832401,-284.86025039,0.00018773,2]
[338169752,1726339832411,-500.0,0.00018773,2]
[338169754,1726339832420,-501.51600517,0.00018773,2]
[338169756,1726339832429,-267336.438767,0.0001878,2]
[338169757,1726339832439,-15135.1838119,0.0001878,2]
[338169759,1726339832449,-66834.1096917,0.0001879,2]
[338169761,1726339832459,-3783.79595297,0.0001879,2]
[338169763,1726339832468,-151.0,0.0001879,2]
[338169765,1726339832477,-151.0,0.0001879,2]
[338169767,1726339832487,-151.0,0.0001879,2]
[338169769,1726339832496,-151.0,0.0001879,2]
[338169770,1726339832505,-151.0,0.0001879,2]
[338169772,1726339832514,-151.0,0.0001879,2]
[338169774,1726339832523,-151.0,0.0001879,2]
[338169775,1726339832533,-616.01476,0.0001879,2]
[338169776,1726339832542,-616.01476,0.0001879,2]
[338169777,1726339832551,-151.0,0.0001879,2]
[338169778,1726339832561,-4720.018771,0.0001879,2]
[338169779,1726339832570,-616.01476,0.0001879,2]
[338169780,1726339832580,-4720.018771,0.0001879,2]
[338169781,1726339832589,-616.01476,0.0001879,2]
[338169782,1726339832598,-4720.018771,0.0001879,2]
[338169783,1726339832608,-4720.018771,0.0001879,2]
[338169784,1726339832617,-195.90284,0.0001879,2]
[338169785,1726339832628,-195.90284,0.0001879,2]
[338169786,1726339832638,-151.0,0.0001879,2]
[338169787,1726339832647,-151.0,0.0001879,2]
[338169788,1726339832658,-195.90284,0.0001879,2]
[338169789,1726339832667,-195.90284,0.0001879,2]
[338169790,1726339832676,-151.0,0.0001879,2]
[338169791,1726339832685,-151.0,0.0001879,2]
[338169792,1726339832694,-151.0,0.0001879,2]
[338169793,1726339832703,-673.730531,0.0001879,2]
[338169795,1726339832712,-151.0,0.0001879,2]
[338169797,1726339832722,-673.730531,0.0001879,2]
[338169799,1726339832732,-211.501893,0.0001879,2]
[338169800,1726339832741,-151.0,0.0001879,2]
[338169802,1726339832750,-151.0,0.0001879,2]
[338169804,1726339832760,-211.501893,0.0001879,2]
[338169805,1726339832769,-269.367258,0.0001879,2]
[338169806,1726339832778,-151.0,0.0001879,2]
[338169807,1726339832787,-151.0,0.0001879,2]
[338169809,1726339832797,-151.0,0.0001879,2]
[338169811,1726339832806,-151.0,0.0001879,2]
[338169812,1726339832815,-1090.697382,0.0001879,2]
[338169813,1726339832825,-30270.3676238,0.0001879,2]
[338169814,1726339832834,-1090.697382,0.0001879,2]
[338169815,1726339832843,-151.0,0.0001879,2]
[338169816,1726339832852,-1277.212235,0.0001879,2]
[338169817,1726339832861,-1277.212235,0.0001879,2]
[338169818,1726339832871,-60792.02321939,0.000188,5]
[338169819,1726339832881,-346995.98178175,0.000188,2]
[338169820,1726339832890,-151.0,0.000188,2]
[338169821,1726339832900,-151.0,0.000188,2]
[338169822,1726339832910,-151.0,0.000188,2]
[338169823,1726339832919,-151.0,0.000188,2]
[338169824,1726339832929,-616.01476,0.000188,2]
[338169825,1726339832938,-4720.018771,0.000188,2]
[338169826,1726339832947,-616.01476,0.000188,2]
[338169827,1726339832956,-4720.018771,0.000188,2]
[338169828,1726339832966,-195.90284,0.000188,2]
[338169829,1726339832975,-151.0,0.000188,2]
[338169830,1726339832984,-195.90284,0.000188,2]
[338169831,1726339832994,-151.0,0.000188,2]
[338169832,1726339833003,-151.0,0.000188,2]
[338169833,1726339833012,-151.0,0.000188,2]
[338169834,1726339833022,-673.730531,0.000188,2]
[338169835,1726339833032,-151.0,0.000188,2]
[338169836,1726339833041,-673.730531,0.000188,2]
[338169837,1726339833051,-211.501893,0.000188,2]
[338169838,1726339833062,-151.0,0.000188,2]
[338169839,1726339833071,-151.0,0.000188,2]
[338169840,1726339833081,-211.501893,0.000188,2]
[338169841,1726339833090,-151.0,0.000188,2]
[338169842,1726339833100,-151.0,0.000188,2]
[338169843,1726339833109,-151.0,0.000188,2]
[338169844,1726339833119,-151.0,0.000188,2]
[338169845,1726339833129,-1090.697382,0.000188,2]
[338169846,1726339833138,-1090.697382,0.000188,2]
[338169847,1726339833148,-151.0,0.000188,2]
[338169848,1726339833157,-1277.212235,0.000188,2]
[338169849,1726339833167,-1277.212235,0.000188,2]
[338169850,1726339833176,-161.4747233,0.00019178,2]
[338169851,1726339833185,-1633.92518351,0.00019645,2]
[338169852,1726339833195,-150.112233,0.000197,2]
[338169853,1726339833204,-150.112233,0.0002,3]
[338169854,1726339833214,-556.82,0.0002014,3]
[338169855,1726339833224,-814.53889237,0.00020142,2]
[338169856,1726339833233,-1000.0,0.00020142,2]
[338169857,1726339833243,-911.88407028,0.00020142,2]
[338169858,1726339833252,-500.0,0.00020142,2]
[338169859,1726339833262,-500.0,0.00020142,2]
[338169860,1726339833271,-313.42878,0.00020187,2]
[338169861,1726339833281,-5461.94764664,0.00020333,2]
[338169862,1726339833291,-150.112233,0.000204,5]
[338169863,1726339833300,-420.0,0.00020463,2]
[338169864,1726339833309,-151.0,0.00020548,2]
[338169865,1726339833319,-151.0,0.00020548,2]
[338169866,1726339833329,-1633.92518351,0.000206,2]
[338169867,1726339833338,-150.112233,0.000207,3]
[338169868,1726339833348,-150.112233,0.00021,2]
[338169869,1726339833359,-3000.0,0.00021,2]
[338169870,1726339833371,-150.112237,0.00021,2]
[338169871,1726339833381,-3000.0,0.0002101,2]
[338169872,1726339833390,-5850.0,0.0002102,2]
[338169873,1726339833400,-150.112233,0.000213,2]
[338169874,1726339833410,-1633.92518351,0.00021556,2]
[338169875,1726339833420,-150.112233,0.000216,5]
[338169876,1726339833430,-300.2284704,0.00021706,2]
[338169877,1726339833440,-3783.79595297,0.00021779,3]
[338169878,1726339833450,-1000.0,0.0002178,2]
[338169879,1726339833460,-3000.0,0.00021789,2]
[338169880,1726339833470,-3000.0,0.00021789,2]
[338169881,1726339833480,-1760.93,0.00021789,2]
[338169882,1726339833489,-151.0,0.00021817,2]
[338169883,1726339833499,-151.0,0.00021817,2]
[338169884,1726339833509,-151.0,0.00021817,2]
[338169885,1726339833518,-151.0,0.00021817,2]
[338169886,1726339833527,-151.0,0.00021817,2]
[338169887,1726339833537,-151.0,0.00021817,2]
[338169888,1726339833547,-151.0,0.00021817,2]
[338169889,1726339833556,-266.649276,0.00021817,2]
[338169890,1726339833566,-266.649276,0.00021817,2]
[338169891,1726339833575,-151.0,0.00021817,2]
[338169892,1726339833584,-151.0,0.00021817,2]
[338169893,1726339833594,-245.928721,0.00021817,2]
[338169894,1726339833603,-151.0,0.00021817,2]
[338169895,1726339833613,-616.01476,0.00021817,2]
[338169896,1726339833622,-4720.018771,0.00021817,2]
[338169897,1726339833634,-616.01476,0.00021817,2]
[338169898,1726339833644,-4720.018771,0.00021817,2]
[338169899,1726339833653,-195.90284,0.00021817,2]
[338169900,1726339833662,-151.0,0.00021817,2]
[338169901,1726339833672,-195.90284,0.00021817,2]
[338169902,1726339833681,-151.0,0.00021817,2]
[338169903,1726339833690,-151.0,0.00021817,2]
[338169904,1726339833700,-151.0,0.00021817,2]
[338169905,1726339833709,-673.730531,0.00021817,2]
[338169906,1726339833718,-162.046306,0.00021817,2]
[338169907,1726339833727,-673.730531,0.00021817,2]
[338169908,1726339833737,-211.501893,0.00021817,2]
[338169909,1726339833747,-151.0,0.00021817,2]
[338169910,1726339833756,-151.0,0.00021817,2]
[338169911,1726339833765,-211.501893,0.00021817,2]
[338169912,1726339833775,-1451.0,0.0002187,7]
[338169913,1726339833784,-376.695,0.000219,2]
[338169914,1726339833793,-150.0,0.000219,2]
[338169915,1726339833803,-500.0,0.00021906,2]
[338169916,1726339833813,-3783.79595297,0.00021907,3]
[338169917,1726339833823,-18918.9797649,0.00021907,3]
[338169918,1726339833833,-16429.00723418,0.00021915,5]
[338169919,1726339833842,-150.01,0.00021915,2]
[338169920,1726339833853,-11781.0383273,0.00021915,2]
[338169921,1726339833863,-160.0,0.00021916,2]
[338169922,1726339833873,-500.0,0.00021917,2]
[338169923,1726339833883,-500.0,0.00021917,2]
[338169924,1726339833892,-500.0,0.00021917,2]
[338169925,1726339833903,-500.0,0.00021917,2]
[338169926,1726339833912,-502.00006352,0.00021917,2]
[338169927,1726339833922,-479.91518354,0.00021917,2]
[338169928,1726339833932,-508.22472543,0.00021917,2]
[338169929,1726339833941,-502.89839251,0.00021917,2]
[338169930,1726339833951,-501.7908968,0.00021917,2]
[338169931,1726339833961,-150.0,0.00021917,2]
[338169932,1726339833971,-500.0,0.00021917,2]
[338169933,1726339833980,-500.0,0.00021917,2]
[338169934,1726339833990,-500.0,0.00021917,2]
[338169935,1726339833999,-500.0,0.00021917,2]
[338169936,1726339834009,-500.0,0.00021917,2]
[338169937,1726339834019,-500.0,0.00021917,2]
[338169938,1726339834028,-500.0,0.00021917,2]
[338169939,1726339834038,-500.0,0.00021917,2]
[338169940,1726339834047,-507.69795907,0.00021917,2]
[338169941,1726339834057,-500.0,0.00021917,2]
[338169942,1726339834067,-500.0,0.00021917,2]
[338169943,1726339834076,-500.0,0.00021917,2]
[338169944,1726339834086,-500.0,0.00021917,2]
[338169945,1726339834096,-500.0,0.00021917,2]
[338169946,1726339834105,-500.0,0.00021917,2]
[338169947,1726339834115,-500.0,0.00021917,2]
[338169948,1726339834124,-500.0,0.00021917,2]
[338169949,1726339834134,-500.0,0.00021917,2]
[338169950,1726339834144,-501.06709987,0.00021917,2]
[338169951,1726339834154,-280.47730699,0.00021917,2]
[338169952,1726339834163,-585.03221517,0.00021917,2]
[338169953,1726339834173,-500.0,0.00021917,2]
[338169954,1726339834182,-500.0,0.00021917,2]
[338169955,1726339834192,-500.0,0.00021917,2]
[338169956,1726339834202,-500.0,0.00021917,2]
[338169957,1726339834211,-500.0,0.00021917,2]
[338169958,1726339834221,-500.0,0.00021917,2]
[338169959,1726339834231,-214.43277345,0.00021917,2]
[338169960,1726339834241,-587.1339477,0.00021917,2]
[338169961,1726339834250,-500.0,0.00021917,2]
[338169962,1726339834260,-500.0,0.00021917,2]
[338169963,1726339834270,-500.0,0.00021917,2]
[338169964,1726339834280,-500.0,0.00021917,2]
[338169965,1726339834290,-555.03,0.00021917,2]
[338169966,1726339834300,-500.0,0.00021917,2]
[338169967,1726339834310,-500.0,0.00021917,2]
[338169968,1726339834320,-500.0,0.00021917,2]
[338169969,1726339834329,-500.0,0.00021917,2]
[338169970,1726339834339,-597.9853225,0.00021917,2]
[338169971,1726339834348,-500.0,0.00021917,2]
[338169972,1726339834358,-500.0,0.00021917,2]
[338169973,1726339834371,-500.0,0.00021917,2]
[338169974,1726339834381,-500.0,0.00021917,2]
[338169975,1726339834391,-497.54475266,0.00021917,2]
[338169976,1726339834401,-1447.88,0.00021917,2]
[338169977,1726339834412,-500.0,0.00021917,2]
[338169978,1726339834421,-500.0,0.00021917,2]
[338169979,1726339834431,-500.0,0.00021917,2]
[338169980,1726339834441,-1006.14,0.00021917,2]
[338169981,1726339834451,-500.0,0.00021917,2]
[338169982,1726339834461,-500.0,0.00021917,2]
[338169983,1726339834470,-500.0,0.00021917,2]
[338169984,1726339834479,-500.0,0.00021917,2]
[338169985,1726339834489,-500.0,0.00021917,2]
[338169986,1726339834499,-500.0,0.00021917,2]
[338169987,1726339834508,-500.0,0.00021917,2]
[338169988,1726339834518,-500.0,0.00021917,2]
[338169989,1726339834527,-500.0,0.00021917,2]
[338169990,1726339834537,-500.0,0.00021917,2]
[338169991,1726339834546,-500.0,0.00021917,2]
[338169992,1726339834556,-500.0,0.00021917,2]
[338169993,1726339834567,-500.0,0.00021917,2]
[338169994,1726339834577,-500.0,0.00021917,2]
[338169995,1726339834586,-565.82764609,0.00021917,2]
[338169996,1726339834596,-500.0,0.00021917,2]
[338169997,1726339834606,-500.0,0.00021917,2]
[338169998,1726339834616,-500.0,0.00021917,2]
[338169999,1726339834627,-500.0,0.00021917,2]
[338170000,1726339834636,-500.0,0.00021917,2]
[338170001,1726339834646,-1117.51,0.00021917,2]
[338170002,1726339834656,-500.0,0.00021917,2]
[338170003,1726339834666,-500.0,0.00021917,2]
[338170004,1726339834676,-500.0,0.00021917,2]
[338170005,1726339834686,-255.6674297,0.00021917,2]
[338170006,1726339834695,-500.0,0.00021917,2]
[338170007,1726339834705,-500.0,0.00021917,2]
[338170008,1726339834715,-500.0,0.00021917,2]
[338170009,1726339834726,-500.0,0.00021917,2]